[Event "*** Titled Tuesday Blitz"]
[Site "Chess.com"]
[Date "2019.03.05"]
[Round "3"]
[White "Ibraev_Vasilj"]
[Black "zeitnot2006"]
[Result "1/2-1/2"]
[WhiteElo "2152"]
[BlackElo "2101"]
[TimeControl "180+2"]
[EndTime "13:43:30 PST"]
[Termination "Game drawn by agreement"]

1. Nf3 {[%clk 0:02:59.4]} 1... b6 {[%clk 0:02:57.1]} 2. d4 {[%clk 0:02:58.1]}
2... Bb7 {[%clk 0:02:59]} 3. g3 {[%clk 0:02:59]} 3... g6 {[%clk 0:02:49.4]} 4.
Bg2 {[%clk 0:02:59.4]} 4... Bg7 {[%clk 0:02:50.9]} 5. O-O {[%clk 0:03:00.1]}
5... e6 {[%clk 0:02:52.1]} 6. c4 {[%clk 0:03:00.6]} 6... Ne7 {[%clk 0:02:53.4]}
7. Nc3 {[%clk 0:03:00.5]} 7... d6 {[%clk 0:02:54.7]} 8. e4 {[%clk 0:02:58.9]}
8... Nd7 {[%clk 0:02:55.4]} 9. Re1 {[%clk 0:02:59.6]} 9... a6 {[%clk 0:02:54.5]}
10. b3 {[%clk 0:02:56.3]} 10... e5 {[%clk 0:02:53.8]} 11. Bb2 {[%clk 0:02:53.7]}
11... exd4 {[%clk 0:02:54.1]} 12. Nxd4 {[%clk 0:02:53.8]} 12... O-O {[%clk
0:02:49]} 13. Qd2 {[%clk 0:02:52.9]} 13... a5 {[%clk 0:02:44.6]} 14. a3 {[%clk
0:02:50.9]} 14... Nc5 {[%clk 0:02:43.7]} 15. Nd5 {[%clk 0:02:21.8]} 15... Bxd5
{[%clk 0:02:31.6]} 16. exd5 {[%clk 0:02:16.9]} 16... Qd7 {[%clk 0:02:21.8]} 17.
b4 {[%clk 0:02:16.7]} 17... Na4 {[%clk 0:02:17.8]} 18. Rad1 {[%clk 0:02:07.1]}
18... Nxb2 {[%clk 0:02:16.6]} 19. Qxb2 {[%clk 0:02:07.3]} 19... axb4 {[%clk
0:02:02.7]} 20. axb4 {[%clk 0:02:07.4]} 20... Rfe8 {[%clk 0:01:52.1]} 21. Qc2
{[%clk 0:01:58.2]} 21... Kh8 {[%clk 0:01:26.4]} 22. c5 {[%clk 0:01:52.6]} 22...
bxc5 {[%clk 0:01:23.3]} 23. bxc5 {[%clk 0:01:52.9]} 23... dxc5 {[%clk
0:01:22.5]} 24. Qxc5 {[%clk 0:01:47.7]} 24... Qd6 {[%clk 0:01:23.6]} 25. Qc4
{[%clk 0:01:44]} 25... Ng8 {[%clk 0:01:06.6]} 26. Nb5 {[%clk 0:01:42]} 26... Qa6
{[%clk 0:01:03.1]} 27. Rxe8 {[%clk 0:01:36.9]} 27... Rxe8 {[%clk 0:01:03.2]} 28.
Qc6 {[%clk 0:01:35.2]} 28... Qa4 {[%clk 0:00:48.6]} 29. Rf1 {[%clk 0:01:27.5]}
29... Re7 {[%clk 0:00:36.4]} 30. h4 {[%clk 0:01:17]} 30... Nh6 {[%clk
0:00:31.8]} 31. Rc1 {[%clk 0:01:06.7]} 31... Bb2 {[%clk 0:00:21.9]} 32. Rb1
{[%clk 0:00:59.9]} 32... Bg7 {[%clk 0:00:22.6]} 33. Rc1 {[%clk 0:01:00]} 33...
Bb2 {[%clk 0:00:23.1]} 34. Rb1 {[%clk 0:00:56.7]} 34... Bg7 {[%clk 0:00:24.2]}
35. d6 {[%clk 0:00:51.3]} 35... cxd6 {[%clk 0:00:18.7]} 36. Nxd6 {[%clk
0:00:51.8]} 36... Qxc6 {[%clk 0:00:17.2]} 37. Bxc6 {[%clk 0:00:52.4]} 37... Be5
{[%clk 0:00:15.6]} 38. Nc4 {[%clk 0:00:49]} 38... Bc7 {[%clk 0:00:15.3]} 39. Rb7
{[%clk 0:00:45.7]} 39... Kg7 {[%clk 0:00:14]} 40. Kg2 {[%clk 0:00:44]} 40... Nf5
{[%clk 0:00:14.1]} 41. Nd2 {[%clk 0:00:43.2]} 41... Nd6 {[%clk 0:00:14.7]} 42.
Ra7 {[%clk 0:00:40.1]} 42... Bd8 {[%clk 0:00:15.3]} 43. Ra8 {[%clk 0:00:40]}
43... Bb6 {[%clk 0:00:14.7]} 44. Nf3 {[%clk 0:00:40.1]} 44... Ne4 {[%clk
0:00:13.7]} 45. Bxe4 {[%clk 0:00:39.1]} 45... Rxe4 {[%clk 0:00:15.6]} 46. Ra2
{[%clk 0:00:39.8]} 46... Re7 {[%clk 0:00:12.8]} 47. Rb2 {[%clk 0:00:38.9]} 47...
Bc5 {[%clk 0:00:12.7]} 48. Rc2 {[%clk 0:00:39]} 48... Ba7 {[%clk 0:00:13.6]} 49.
Ng5 {[%clk 0:00:39.2]} 49... h6 {[%clk 0:00:14.4]} 50. Nh3 {[%clk 0:00:39.5]}
50... Rd7 {[%clk 0:00:12.6]} 51. Nf4 {[%clk 0:00:39.8]} 51... Bb6 {[%clk
0:00:13.8]} 52. Rc6 {[%clk 0:00:36.5]} 52... Ba7 {[%clk 0:00:14.5]} 53. Ra6
{[%clk 0:00:35.5]} 53... Bc5 {[%clk 0:00:14.4]} 54. Ra5 {[%clk 0:00:35.8]} 54...
Bb6 {[%clk 0:00:15.4]} 55. Rb5 {[%clk 0:00:36.2]} 55... Ba7 {[%clk 0:00:16.3]}
56. Rb2 {[%clk 0:00:36.8]} 56... Bc5 {[%clk 0:00:15.8]} 57. Rc2 {[%clk
0:00:35.8]} 57... Ba7 {[%clk 0:00:15.9]} 58. Kf3 {[%clk 0:00:33.6]} 58... Bb6
{[%clk 0:00:16.6]} 59. Rb2 {[%clk 0:00:32.8]} 59... Ba7 {[%clk 0:00:16.6]} 60.
Ra2 {[%clk 0:00:33.5]} 60... Bb6 {[%clk 0:00:17.3]} 61. Ra6 {[%clk 0:00:33.9]}
61... Bc5 {[%clk 0:00:17.7]} 62. Ra5 {[%clk 0:00:31.4]} 62... Bb6 {[%clk
0:00:18.4]} 63. Ra6 {[%clk 0:00:28.3]} 1/2-1/2

[Event "*** Titled Tuesday Blitz"]
[Site "Chess.com"]
[Date "2019.03.05"]
[Round "3"]
[White "shrek4life02"]
[Black "Barcelona_Guy"]
[Result "1/2-1/2"]
[WhiteElo "2375"]
[BlackElo "2722"]
[TimeControl "180+2"]
[EndTime "13:43:33 PST"]
[Termination "Game drawn by agreement"]

1. d4 {[%clk 0:03:01.9]} 1... Nf6 {[%clk 0:03:00.5]} 2. Bf4 {[%clk 0:03:03]}
2... d5 {[%clk 0:03:01.4]} 3. Nc3 {[%clk 0:03:03.3]} 3... c5 {[%clk 0:03:01.3]}
4. e3 {[%clk 0:03:04.4]} 4... cxd4 {[%clk 0:03:02.8]} 5. exd4 {[%clk 0:03:05.5]}
5... a6 {[%clk 0:03:04.3]} 6. Nf3 {[%clk 0:03:07]} 6... Nc6 {[%clk 0:03:05.5]}
7. Bd3 {[%clk 0:03:07.5]} 7... Bg4 {[%clk 0:03:05.7]} 8. Ne2 {[%clk 0:03:06.8]}
8... Bxf3 {[%clk 0:03:05.2]} 9. gxf3 {[%clk 0:03:07.6]} 9... e6 {[%clk
0:03:06.8]} 10. Qd2 {[%clk 0:03:07.6]} 10... Bd6 {[%clk 0:03:07.9]} 11. Bg5
{[%clk 0:03:08.2]} 11... h6 {[%clk 0:03:08.4]} 12. Bh4 {[%clk 0:03:09.6]} 12...
Rc8 {[%clk 0:03:08.1]} 13. c3 {[%clk 0:03:09.9]} 13... b5 {[%clk 0:03:02]} 14.
Rg1 {[%clk 0:03:11]} 14... g5 {[%clk 0:03:00.8]} 15. Bg3 {[%clk 0:03:11.5]}
15... Na5 {[%clk 0:02:56.1]} 16. f4 {[%clk 0:03:09.6]} 16... g4 {[%clk
0:02:55.2]} 17. f5 {[%clk 0:03:09.7]} 17... Nc4 {[%clk 0:02:51.4]} 18. Bxc4
{[%clk 0:03:10.4]} 18... bxc4 {[%clk 0:02:49.4]} 19. Be5 {[%clk 0:03:02.7]}
19... exf5 {[%clk 0:02:45.5]} 20. Qf4 {[%clk 0:03:00]} 20... Bxe5 {[%clk
0:02:33]} 21. Qxe5+ {[%clk 0:02:50.1]} 21... Qe7 {[%clk 0:02:31.7]} 22. Qxf5
{[%clk 0:02:51.2]} 22... Qe6 {[%clk 0:02:31.1]} 23. Qxe6+ {[%clk 0:02:38.9]}
23... fxe6 {[%clk 0:02:33]} 24. O-O-O {[%clk 0:02:40.2]} 24... Kd7 {[%clk
0:02:32.1]} 25. Nf4 {[%clk 0:02:38.3]} 25... h5 {[%clk 0:02:32.3]} 26. Ng6
{[%clk 0:02:38.9]} 26... Rhg8 {[%clk 0:02:31.2]} 27. Ne5+ {[%clk 0:02:39.9]}
27... Kd6 {[%clk 0:02:32.7]} 28. Rde1 {[%clk 0:02:38.1]} 28... Rcf8 {[%clk
0:02:33.7]} 29. Rg2 {[%clk 0:02:13.3]} 29... Nh7 {[%clk 0:02:33.2]} 30. b3
{[%clk 0:02:10.8]} 30... cxb3 {[%clk 0:02:33.5]} 31. axb3 {[%clk 0:02:12.5]}
31... Ng5 {[%clk 0:02:35.1]} 32. c4 {[%clk 0:02:12.4]} 32... Ne4 {[%clk
0:02:35.1]} 33. c5+ {[%clk 0:02:11.5]} 33... Kc7 {[%clk 0:02:34.8]} 34. Re2
{[%clk 0:02:09.9]} 34... a5 {[%clk 0:02:28.8]} 35. Kc2 {[%clk 0:02:02.5]} 35...
Ng5 {[%clk 0:02:05.4]} 36. b4 {[%clk 0:01:54.5]} 36... axb4 {[%clk 0:02:06]} 37.
Kb3 {[%clk 0:01:55.9]} 37... Ne4 {[%clk 0:02:02.2]} 38. Ra2 {[%clk 0:01:53.7]}
38... Ra8 {[%clk 0:01:59.1]} 39. f3 {[%clk 0:01:44.2]} 39... Rxa2 {[%clk
0:01:51.5]} 40. Rxa2 {[%clk 0:01:41]} 40... gxf3 {[%clk 0:01:52.2]} 41. Nxf3
{[%clk 0:01:41]} 41... Rb8 {[%clk 0:01:32.5]} 42. Ra7+ {[%clk 0:01:28.6]} 42...
Kc6 {[%clk 0:01:29.2]} 43. Ne5+ {[%clk 0:01:11]} 43... Kb5 {[%clk 0:01:30.1]}
44. Nd7 {[%clk 0:01:12.2]} 44... Rg8 {[%clk 0:01:19.1]} 45. Rb7+ {[%clk
0:00:59.1]} 45... Kc6 {[%clk 0:01:15.9]} 46. Rb8 {[%clk 0:01:00.2]} 46... Rg2
{[%clk 0:00:50.3]} 47. Ne5+ {[%clk 0:00:58.3]} 47... Kc7 {[%clk 0:00:51.8]} 48.
Re8 {[%clk 0:00:51.4]} 48... Rxh2 {[%clk 0:00:47.4]} 49. Rxe6 {[%clk 0:00:52.3]}
49... h4 {[%clk 0:00:48.8]} 50. Rc6+ {[%clk 0:00:52.3]} 50... Kd8 {[%clk
0:00:47.1]} 51. Rh6 {[%clk 0:00:51.7]} 51... h3 {[%clk 0:00:44.4]} 52. c6 {[%clk
0:00:52.6]} 52... Rg2 {[%clk 0:00:27.5]} 53. Rh8+ {[%clk 0:00:47.6]} 53... Kc7
{[%clk 0:00:28.5]} 54. Rh7+ {[%clk 0:00:49.2]} 54... Kc8 {[%clk 0:00:24.3]} 55.
Nd7 {[%clk 0:00:46]} 55... Kc7 {[%clk 0:00:15.6]} 56. Ne5+ {[%clk 0:00:39.9]}
56... Kc8 {[%clk 0:00:17]} 57. Rh8+ {[%clk 0:00:32.1]} 57... Kc7 {[%clk
0:00:18.2]} 58. Rxh3 {[%clk 0:00:31.1]} 58... Rg3+ {[%clk 0:00:17.9]} 59. Rxg3
{[%clk 0:00:31.8]} 59... Nxg3 {[%clk 0:00:19.8]} 60. Kxb4 {[%clk 0:00:33.5]}
60... Nf5 {[%clk 0:00:19.5]} 61. Kc5 {[%clk 0:00:34.4]} 61... Ne7 {[%clk
0:00:20.8]} 62. Kb5 {[%clk 0:00:33.1]} 62... Nf5 {[%clk 0:00:22.1]} 63. Kc5
{[%clk 0:00:27.7]} 63... Ne7 {[%clk 0:00:23.4]} 64. Kb5 {[%clk 0:00:25.6]} 64...
Nf5 {[%clk 0:00:24.6]} 65. Nf3 {[%clk 0:00:27.3]} 65... Ne7 {[%clk 0:00:25]}
1/2-1/2

[Event "*** Titled Tuesday Blitz"]
[Site "Chess.com"]
[Date "2019.03.05"]
[Round "3"]
[White "Gentlejimmy7"]
[Black "Lovkov_Roman"]
[Result "1-0"]
[WhiteElo "2380"]
[BlackElo "2581"]
[TimeControl "180+2"]
[EndTime "13:43:41 PST"]
[Termination "Gentlejimmy7 won by resignation"]

1. d4 {[%clk 0:03:01.9]} 1... d5 {[%clk 0:03:00.1]} 2. Nf3 {[%clk 0:03:00.4]}
2... e6 {[%clk 0:03:00.8]} 3. g3 {[%clk 0:03:00.8]} 3... c5 {[%clk 0:03:01.9]}
4. Bg2 {[%clk 0:03:02.4]} 4... Nc6 {[%clk 0:03:02.6]} 5. O-O {[%clk 0:03:03.5]}
5... Nf6 {[%clk 0:03:04]} 6. c4 {[%clk 0:03:03.9]} 6... Be7 {[%clk 0:03:05.4]}
7. cxd5 {[%clk 0:03:04.5]} 7... exd5 {[%clk 0:03:07.3]} 8. dxc5 {[%clk
0:03:05.7]} 8... Bxc5 {[%clk 0:03:07.9]} 9. a3 {[%clk 0:03:07]} 9... O-O {[%clk
0:03:04.5]} 10. b4 {[%clk 0:03:07.5]} 10... Be7 {[%clk 0:03:01.9]} 11. Nc3
{[%clk 0:03:05.6]} 11... Bf5 {[%clk 0:02:55]} 12. Be3 {[%clk 0:02:51.8]} 12...
Qd7 {[%clk 0:02:35]} 13. Nd4 {[%clk 0:02:40.5]} 13... Bh3 {[%clk 0:02:33.2]} 14.
Qd3 {[%clk 0:02:33.1]} 14... Ne5 {[%clk 0:02:33.2]} 15. Qb5 {[%clk 0:02:27.4]}
15... Nc6 {[%clk 0:02:06.9]} 16. Rfd1 {[%clk 0:02:09.5]} 16... Bxg2 {[%clk
0:02:05.4]} 17. Kxg2 {[%clk 0:02:10.6]} 17... a6 {[%clk 0:02:04.9]} 18. Qd3
{[%clk 0:02:09.5]} 18... Rfd8 {[%clk 0:02:00.2]} 19. Rac1 {[%clk 0:02:06.5]}
19... Rac8 {[%clk 0:01:49.5]} 20. Nxc6 {[%clk 0:02:06.7]} 20... Rxc6 {[%clk
0:01:34.8]} 21. Bd4 {[%clk 0:02:04.9]} 21... Qe6 {[%clk 0:01:31.6]} 22. Na4
{[%clk 0:01:59.4]} 22... Rc4 {[%clk 0:01:26.2]} 23. Nb6 {[%clk 0:01:36.4]} 23...
Rc6 {[%clk 0:01:13.2]} 24. Bxf6 {[%clk 0:01:35.1]} 24... Bxf6 {[%clk 0:01:11]}
25. Rxc6 {[%clk 0:01:30.3]} 25... bxc6 {[%clk 0:01:04.6]} 26. Na4 {[%clk
0:01:30]} 26... Re8 {[%clk 0:01:00.7]} 27. e3 {[%clk 0:01:30.4]} 27... Be7
{[%clk 0:00:53.3]} 28. Rc1 {[%clk 0:01:30.8]} 28... h5 {[%clk 0:00:52.6]} 29.
Nc5 {[%clk 0:01:02.7]} 29... Bxc5 {[%clk 0:00:46.5]} 30. Rxc5 {[%clk 0:01:03.6]}
30... h4 {[%clk 0:00:47.9]} 31. h3 {[%clk 0:00:35.4]} 31... hxg3 {[%clk
0:00:48]} 32. Kxg3 {[%clk 0:00:36.9]} 32... Qe5+ {[%clk 0:00:47.4]} 33. Kg2
{[%clk 0:00:34.1]} 33... Re6 {[%clk 0:00:48.5]} 34. Qxa6 {[%clk 0:00:34.8]}
34... Rg6+ {[%clk 0:00:48.6]} 35. Kf1 {[%clk 0:00:36]} 35... Qa1+ {[%clk
0:00:42.3]} 36. Ke2 {[%clk 0:00:37.1]} 36... Qb2+ {[%clk 0:00:42.7]} 37. Kd3
{[%clk 0:00:38]} 37... Qxf2 {[%clk 0:00:36]} 38. Qc8+ {[%clk 0:00:38.7]} 38...
Kh7 {[%clk 0:00:36.2]} 39. Rxc6 {[%clk 0:00:40.1]} 39... Qf1+ {[%clk 0:00:32.4]}
40. Kd4 {[%clk 0:00:34.6]} 40... Qa1+ {[%clk 0:00:30.3]} 41. Rc3 {[%clk
0:00:28.8]} 41... Qd1+ {[%clk 0:00:22.8]} 42. Kc5 {[%clk 0:00:25.7]} 42... Qd2
{[%clk 0:00:21.5]} 43. Kb5 {[%clk 0:00:24.3]} 43... Qe2+ {[%clk 0:00:21.3]} 44.
Ka5 {[%clk 0:00:25.1]} 44... Qd2 {[%clk 0:00:20.5]} 45. a4 {[%clk 0:00:21.2]}
45... d4 {[%clk 0:00:20.3]} 46. exd4 {[%clk 0:00:21.9]} 46... Qxd4 {[%clk
0:00:22.2]} 47. Qc5 {[%clk 0:00:22.6]} 47... Qd8+ {[%clk 0:00:23.3]} 48. Qc7
{[%clk 0:00:23.9]} 48... Rg5+ {[%clk 0:00:23.6]} 49. b5 {[%clk 0:00:25.3]} 49...
Qa8+ {[%clk 0:00:24.7]} 50. Kb4 {[%clk 0:00:26.1]} 50... Rf5 {[%clk 0:00:23.1]}
51. Rc4 {[%clk 0:00:22.8]} 51... Qf8+ {[%clk 0:00:22.1]} 52. Ka5 {[%clk
0:00:22.8]} 52... Qa8+ {[%clk 0:00:22.4]} 53. Kb6 {[%clk 0:00:24.1]} 53... Rf6+
{[%clk 0:00:22.8]} 54. Rc6 {[%clk 0:00:25.1]} 54... Rf5 {[%clk 0:00:21.7]} 55.
a5 {[%clk 0:00:25.5]} 55... Qe8 {[%clk 0:00:21.7]} 56. a6 {[%clk 0:00:26.6]}
56... Qe3+ {[%clk 0:00:22.1]} 57. Rc5 {[%clk 0:00:27.9]} 57... Qe6+ {[%clk
0:00:21.3]} 58. Kb7 {[%clk 0:00:27.6]} 58... Qe4+ {[%clk 0:00:22.3]} 59. Kb8
{[%clk 0:00:26.7]} 59... Qe8+ {[%clk 0:00:23.3]} 60. Ka7 {[%clk 0:00:27]} 60...
Qe3 {[%clk 0:00:21.6]} 61. Kb6 {[%clk 0:00:24.1]} 61... Rf6+ {[%clk 0:00:21.5]}
62. Kb7 {[%clk 0:00:23]} 62... Re6 {[%clk 0:00:21.5]} 63. a7 {[%clk 0:00:23.1]}
63... Qe4+ {[%clk 0:00:21.8]} 64. Rc6 {[%clk 0:00:21.8]} 64... Qd5 {[%clk
0:00:18.4]} 65. b6 {[%clk 0:00:22.3]} 65... Re8 {[%clk 0:00:16.2]} 66. a8=Q
{[%clk 0:00:22.7]} 1-0

[Event "*** Titled Tuesday Blitz"]
[Site "Chess.com"]
[Date "2019.03.05"]
[Round "3"]
[White "Saitama_Hero"]
[Black "BASSU1"]
[Result "0-1"]
[WhiteElo "2230"]
[BlackElo "2091"]
[TimeControl "180+2"]
[EndTime "13:43:45 PST"]
[Termination "BASSU1 won by resignation"]

1. d4 {[%clk 0:03:01.9]} 1... d5 {[%clk 0:03:00.5]} 2. c4 {[%clk 0:03:01.9]}
2... e6 {[%clk 0:03:01.6]} 3. Nf3 {[%clk 0:03:00.7]} 3... c6 {[%clk 0:03:02.6]}
4. Nc3 {[%clk 0:03:00.6]} 4... dxc4 {[%clk 0:03:03.5]} 5. a4 {[%clk 0:03:01.7]}
5... Bb4 {[%clk 0:03:03.7]} 6. e3 {[%clk 0:03:03]} 6... b5 {[%clk 0:03:04.4]} 7.
Bd2 {[%clk 0:03:04.5]} 7... a5 {[%clk 0:03:05.2]} 8. axb5 {[%clk 0:03:05.7]}
8... Bxc3 {[%clk 0:03:06]} 9. Bxc3 {[%clk 0:03:07.6]} 9... cxb5 {[%clk 0:03:07]}
10. b3 {[%clk 0:03:09.2]} 10... Bb7 {[%clk 0:03:08.2]} 11. bxc4 {[%clk
0:03:10.8]} 11... b4 {[%clk 0:03:09.6]} 12. Bb2 {[%clk 0:03:12]} 12... Nf6
{[%clk 0:03:10.9]} 13. Bd3 {[%clk 0:03:13.1]} 13... O-O {[%clk 0:03:11.4]} 14.
O-O {[%clk 0:03:14.4]} 14... Ne4 {[%clk 0:03:11.7]} 15. Qc2 {[%clk 0:03:13.2]}
15... f5 {[%clk 0:03:11.9]} 16. c5 {[%clk 0:03:14.1]} 16... Bc6 {[%clk
0:03:12.1]} 17. Ne5 {[%clk 0:03:14.2]} 17... Bd5 {[%clk 0:02:31.8]} 18. f3
{[%clk 0:03:12]} 18... b3 {[%clk 0:02:29.7]} 19. Qd1 {[%clk 0:02:51.2]} 19...
Nf6 {[%clk 0:02:28.3]} 20. Re1 {[%clk 0:02:40.9]} 20... a4 {[%clk 0:01:54.1]}
21. e4 {[%clk 0:02:41.2]} 21... fxe4 {[%clk 0:01:54.6]} 22. fxe4 {[%clk
0:02:43.1]} 22... Bb7 {[%clk 0:01:50.8]} 23. Bc4 {[%clk 0:02:42]} 23... Re8
{[%clk 0:01:43.2]} 24. d5 {[%clk 0:02:40.4]} 24... exd5 {[%clk 0:01:41.9]} 25.
exd5 {[%clk 0:02:41.2]} 25... Bxd5 {[%clk 0:01:38.6]} 26. Qd4 {[%clk 0:02:38.3]}
26... Bxc4 {[%clk 0:01:14.9]} 27. Qxc4+ {[%clk 0:02:36.2]} 27... Qd5 {[%clk
0:01:15.3]} 28. Qb5 {[%clk 0:02:28.6]} 28... Nbd7 {[%clk 0:01:04.2]} 29. Nxd7
{[%clk 0:02:15.3]} 29... Nxd7 {[%clk 0:01:06.1]} 30. Kh1 {[%clk 0:01:53.5]}
30... Reb8 {[%clk 0:00:34.8]} 31. Qe2 {[%clk 0:01:43]} 31... Nxc5 {[%clk
0:00:34.4]} 32. Qg4 {[%clk 0:01:12.5]} 32... Rb7 {[%clk 0:00:13.2]} 33. Re5
{[%clk 0:01:00.9]} 33... Nd3 {[%clk 0:00:12.3]} 34. Rxd5 {[%clk 0:00:20.7]}
34... Nf2+ {[%clk 0:00:13.2]} 35. Kg1 {[%clk 0:00:22.2]} 35... Nxg4 {[%clk
0:00:15.1]} 36. Rd4 {[%clk 0:00:22.9]} 36... Ne5 {[%clk 0:00:12.9]} 37. Raxa4
{[%clk 0:00:23.6]} 37... Rxa4 {[%clk 0:00:13.9]} 38. Rxa4 {[%clk 0:00:25.5]}
38... Nd3 {[%clk 0:00:15.3]} 39. Ra8+ {[%clk 0:00:16.7]} 39... Kf7 {[%clk
0:00:16.1]} 40. Ba3 {[%clk 0:00:17.3]} 40... b2 {[%clk 0:00:16.5]} 41. Rf8+
{[%clk 0:00:17.7]} 41... Kg6 {[%clk 0:00:16.5]} 42. Bxb2 {[%clk 0:00:10.5]}
42... Rxb2 {[%clk 0:00:18.4]} 43. h3 {[%clk 0:00:11.9]} 43... Ne1 {[%clk
0:00:17.3]} 44. Kh2 {[%clk 0:00:13.8]} 44... Rxg2+ {[%clk 0:00:17.6]} 45. Kh1
{[%clk 0:00:12.4]} 45... Rg3 {[%clk 0:00:18.8]} 46. Kh2 {[%clk 0:00:09.9]} 46...
Rf3 {[%clk 0:00:20.1]} 47. Re8 {[%clk 0:00:09.2]} 47... Nd3 {[%clk 0:00:21.2]}
48. Re6+ {[%clk 0:00:09.9]} 48... Rf6 {[%clk 0:00:22.4]} 49. Re3 {[%clk
0:00:11]} 49... Nf4 {[%clk 0:00:22.9]} 50. Rg3+ {[%clk 0:00:11.9]} 50... Kf7
{[%clk 0:00:23.9]} 51. Rf3 {[%clk 0:00:12.9]} 51... h6 {[%clk 0:00:24.9]} 52.
Rc3 {[%clk 0:00:12.7]} 52... g5 {[%clk 0:00:25.8]} 53. Rc7+ {[%clk 0:00:13.6]}
53... Kg6 {[%clk 0:00:27]} 54. Rb7 {[%clk 0:00:14.5]} 54... Kh5 {[%clk
0:00:28.2]} 55. Kg3 {[%clk 0:00:15.4]} 55... Ne2+ {[%clk 0:00:28.6]} 56. Kg2
{[%clk 0:00:17.2]} 56... Kh4 {[%clk 0:00:29.9]} 57. Rb4+ {[%clk 0:00:17.2]}
57... Nf4+ {[%clk 0:00:31.1]} 58. Kh2 {[%clk 0:00:16.3]} 58... Re6 {[%clk
0:00:32.4]} 59. Rb3 {[%clk 0:00:17.2]} 59... Re2+ {[%clk 0:00:33.3]} 60. Kg1
{[%clk 0:00:18.4]} 60... Nxh3+ {[%clk 0:00:34.4]} 61. Kf1 {[%clk 0:00:19.9]}
61... Nf4 {[%clk 0:00:35.4]} 62. Rf3 {[%clk 0:00:19.3]} 62... Re6 {[%clk
0:00:33.7]} 63. Rf2 {[%clk 0:00:19.4]} 63... Kg3 {[%clk 0:00:34.5]} 64. Ra2
{[%clk 0:00:16.8]} 64... Re3 {[%clk 0:00:33.8]} 65. Rb2 {[%clk 0:00:16.9]} 65...
Re1+ {[%clk 0:00:34.4]} 66. Kxe1 {[%clk 0:00:14.5]} 66... Nd3+ {[%clk
0:00:36.3]} 0-1

[Event "*** Titled Tuesday Blitz"]
[Site "Chess.com"]
[Date "2019.03.05"]
[Round "3"]
[White "kenta1234"]
[Black "kuli4ik"]
[Result "0-1"]
[WhiteElo "2599"]
[BlackElo "2778"]
[TimeControl "180+2"]
[EndTime "13:43:50 PST"]
[Termination "kuli4ik won by resignation"]

1. d4 {[%clk 0:03:01.9]} 1... d5 {[%clk 0:02:51.8]} 2. c4 {[%clk 0:02:57.6]}
2... c6 {[%clk 0:02:51.8]} 3. Nf3 {[%clk 0:02:57.6]} 3... Nf6 {[%clk 0:02:52]}
4. e3 {[%clk 0:02:58.3]} 4... Bg4 {[%clk 0:02:49.5]} 5. Nc3 {[%clk 0:02:57.9]}
5... e6 {[%clk 0:02:49]} 6. h3 {[%clk 0:02:53.6]} 6... Bh5 {[%clk 0:02:45.6]} 7.
g4 {[%clk 0:02:53.8]} 7... Bg6 {[%clk 0:02:45.2]} 8. Ne5 {[%clk 0:02:55]} 8...
Nbd7 {[%clk 0:02:44.8]} 9. Nxg6 {[%clk 0:02:56]} 9... hxg6 {[%clk 0:02:44.3]}
10. Bg2 {[%clk 0:02:46.5]} 10... dxc4 {[%clk 0:02:38.6]} 11. Bd2 {[%clk
0:02:34.5]} 11... e5 {[%clk 0:02:35]} 12. d5 {[%clk 0:02:31.2]} 12... cxd5
{[%clk 0:02:26.8]} 13. Nxd5 {[%clk 0:02:33.1]} 13... Nc5 {[%clk 0:02:27.2]} 14.
Nxf6+ {[%clk 0:02:22.6]} 14... gxf6 {[%clk 0:02:27.6]} 15. Bc3 {[%clk
0:02:20.7]} 15... Be7 {[%clk 0:02:20.5]} 16. Qd5 {[%clk 0:02:14.5]} 16... Rc8
{[%clk 0:01:49.6]} 17. Ke2 {[%clk 0:02:10.8]} 17... Qxd5 {[%clk 0:01:34.3]} 18.
Bxd5 {[%clk 0:02:12.7]} 18... b5 {[%clk 0:01:35.5]} 19. Ba5 {[%clk 0:01:56]}
19... O-O {[%clk 0:01:21.1]} 20. b3 {[%clk 0:01:38.8]} 20... Bd8 {[%clk
0:01:10.1]} 21. Bd2 {[%clk 0:01:29.3]} 21... cxb3 {[%clk 0:00:58]} 22. axb3
{[%clk 0:01:31.2]} 22... Bb6 {[%clk 0:00:58.7]} 23. h4 {[%clk 0:01:21.2]} 23...
Rfd8 {[%clk 0:00:58.9]} 24. e4 {[%clk 0:01:17.1]} 24... Ne6 {[%clk 0:00:46.4]}
25. Rac1 {[%clk 0:01:17.5]} 25... Nd4+ {[%clk 0:00:38.8]} 26. Kd3 {[%clk
0:01:17.5]} 26... Rxc1 {[%clk 0:00:37.1]} 27. Rxc1 {[%clk 0:01:18.1]} 27... Nxb3
{[%clk 0:00:38.3]} 28. Rc6 {[%clk 0:01:13.1]} 28... Nxd2 {[%clk 0:00:28.6]} 29.
Kxd2 {[%clk 0:01:09.2]} 29... Kg7 {[%clk 0:00:25.2]} 30. h5 {[%clk 0:01:03.7]}
30... gxh5 {[%clk 0:00:23.1]} 31. gxh5 {[%clk 0:01:03.5]} 31... Rh8 {[%clk
0:00:23.2]} 32. Rd6 {[%clk 0:01:00.2]} 32... Rxh5 {[%clk 0:00:23.6]} 33. Rd7
{[%clk 0:01:01.4]} 33... Rh2 {[%clk 0:00:24]} 34. Rxf7+ {[%clk 0:01:01.2]} 34...
Kg6 {[%clk 0:00:25]} 35. Rf8 {[%clk 0:01:01]} 35... Rxf2+ {[%clk 0:00:25.2]} 36.
Kd3 {[%clk 0:01:02.5]} 36... Rf3+ {[%clk 0:00:22.6]} 37. Ke2 {[%clk 0:01:03.4]}
37... Re3+ {[%clk 0:00:23.6]} 38. Kd2 {[%clk 0:01:04.8]} 38... Ra3 {[%clk
0:00:21.4]} 39. Rg8+ {[%clk 0:01:05.6]} 39... Kh5 {[%clk 0:00:22.1]} 40. Be6
{[%clk 0:00:52.1]} 40... Be3+ {[%clk 0:00:21.4]} 41. Kc2 {[%clk 0:00:49.7]}
41... b4 {[%clk 0:00:19.8]} 42. Bg4+ {[%clk 0:00:45.7]} 42... Kh4 {[%clk
0:00:18.7]} 43. Be6 {[%clk 0:00:47.6]} 43... a5 {[%clk 0:00:13.3]} 44. Rb8
{[%clk 0:00:40.9]} 44... Kg3 {[%clk 0:00:12.7]} 45. Bf5 {[%clk 0:00:27.8]} 45...
Bd4 {[%clk 0:00:11.3]} 46. Rg8+ {[%clk 0:00:24]} 46... Kf2 {[%clk 0:00:11.8]}
47. Rb8 {[%clk 0:00:24.2]} 47... Ke3 {[%clk 0:00:12.1]} 48. Rb7 {[%clk
0:00:24.8]} 48... Rc3+ {[%clk 0:00:12.9]} 49. Kb1 {[%clk 0:00:25.3]} 49... Bc5
{[%clk 0:00:14.1]} 50. Rh7 {[%clk 0:00:24.9]} 50... a4 {[%clk 0:00:14.9]} 51.
Rh3+ {[%clk 0:00:24.3]} 51... Kd2 {[%clk 0:00:16]} 52. Rh2+ {[%clk 0:00:22.5]}
52... Kd3 {[%clk 0:00:16.9]} 53. Rh3+ {[%clk 0:00:23.5]} 53... Be3 {[%clk
0:00:17.8]} 54. Bh7 {[%clk 0:00:16.7]} 54... a3 {[%clk 0:00:16.5]} 55. Ka2
{[%clk 0:00:16.4]} 55... Kd4 {[%clk 0:00:15.2]} 56. Rh1 {[%clk 0:00:13.8]} 56...
Rc2+ {[%clk 0:00:12.3]} 57. Kb3 {[%clk 0:00:14.7]} 57... Rb2+ {[%clk 0:00:13.5]}
58. Ka4 {[%clk 0:00:15.8]} 58... a2 {[%clk 0:00:14.5]} 59. Rd1+ {[%clk
0:00:17.1]} 59... Bd2 {[%clk 0:00:15.2]} 60. Bg8 {[%clk 0:00:17.3]} 60... Kc3
{[%clk 0:00:15.1]} 61. Rf1 {[%clk 0:00:14.5]} 61... b3 {[%clk 0:00:12.6]} 62.
Rf3+ {[%clk 0:00:13.8]} 62... Kd4 {[%clk 0:00:13.7]} 63. Rf1 {[%clk 0:00:12.3]}
63... Rb1 {[%clk 0:00:14.8]} 0-1